fUST/lending_fUST_20250619
["ID","MTS","AMOUNT","RATE_DAILY","PERIOD"]
[366573660,1750324238340,-500.0,0.00019989,2]
[366573661,1750324238350,-500.0,0.00019989,2]
[366573662,1750324238359,-579.8318391,0.00019989,2]
[366573663,1750324238368,-500.0,0.00019989,2]
[366573664,1750324238377,-500.0,0.00019989,2]
[366573665,1750324238387,-500.0,0.00019989,2]
[366573666,1750324238396,-500.0,0.00019989,2]
[366573667,1750324238406,-500.0,0.00019989,2]
[366573668,1750324238415,-259.41247217,0.00019989,2]
[366573669,1750324238425,-500.0,0.00019989,2]
[366573670,1750324238434,-500.0,0.00019989,2]
[366573671,1750324238444,-500.0,0.00019989,2]
[366573672,1750324238453,-500.0,0.00019989,2]
[366573673,1750324238463,-500.0,0.00019989,2]
[366573674,1750324238472,-500.0,0.00019989,2]
[366573675,1750324238482,-500.0,0.00019989,2]
[366573676,1750324238491,-500.0,0.00019989,2]
[366573677,1750324238501,-500.0,0.00019989,2]
[366573678,1750324238510,-500.0,0.00019989,2]
[366573679,1750324238520,-500.0,0.00019989,2]
[366573680,1750324238529,-500.0,0.00019989,2]
[366573681,1750324238540,-500.0,0.00019989,2]
[366573682,1750324238550,-500.0,0.00019989,2]
[366573683,1750324238560,-500.0,0.00019989,2]
[366573684,1750324238569,-500.0,0.00019989,2]
[366573685,1750324238579,-500.0,0.00019989,2]
[366573686,1750324238588,-500.0,0.00019989,2]
[366573687,1750324238597,-500.0,0.00019989,2]
[366573688,1750324238606,-500.0,0.00019989,2]
[366573689,1750324238616,-500.0,0.00019989,2]
[366573690,1750324238625,-500.0,0.00019989,2]
[366573691,1750324238635,-500.0,0.00019989,2]
[366573692,1750324238644,-613.48724852,0.00019989,2]
[366573693,1750324238653,-500.0,0.00019989,2]
[366573694,1750324238662,-500.0,0.00019989,2]
[366573695,1750324238671,-500.0,0.00019989,2]
[366573696,1750324238680,-500.0,0.00019989,2]
[366573697,1750324238690,-500.0,0.00019989,2]
[366573698,1750324238700,-118.49446934,0.00019989,2]
[366573699,1750324238709,-50000.0,0.0001999,2]
[366573700,1750324238719,-300.0,0.00019991,2]
[366573701,1750324238728,-500.0,0.00019993,2]
[366573702,1750324238737,-1000.0,0.00019996,2]
[366573703,1750324238747,-1000.0,0.00019996,2]
[366573704,1750324238756,-1000.0,0.00019996,2]
[366573705,1750324238766,-160.0,0.00019996,2]
[366573706,1750324238775,-1000.0,0.00019997,2]
[366573707,1750324238785,-151.0,0.00019998,2]
[366573709,1750324238798,-151.0,0.00019998,2]
[366573711,1750324238807,-151.0,0.00019998,2]
[366573713,1750324238817,-1000.0,0.00019999,2]
[366573715,1750324238826,-1000.0,0.00019999,2]
[366573716,1750324238836,-1000.0,0.00019999,2]
[366573719,1750324238846,-151.0,0.0002,2]
[366573720,1750324238855,-151.0,0.0002,2]
[366573722,1750324238865,-450.93946603,0.0002,2]
[366573724,1750324238874,-500.0,0.00020011,2]
[366573726,1750324238884,-500.0,0.00020011,2]
[366573728,1750324238893,-500.0,0.00020011,2]
[366573730,1750324238902,-500.0,0.00020011,2]
[366573732,1750324238911,-500.0,0.00020014,2]
[366573734,1750324238920,-500.0,0.00020014,2]
[366573736,1750324238930,-500.95406167,0.00020014,2]
[366573738,1750324238939,-500.0,0.00020014,2]
[366573740,1750324238948,-607.53197589,0.00020014,2]
[366573742,1750324238957,-502.22246271,0.00020017,2]
[366573744,1750324238967,-500.9000928,0.00020017,2]
[366573746,1750324238976,-500.0,0.00020017,2]
[366573748,1750324238985,-500.0,0.00020017,2]
[366573750,1750324238994,-151.0,0.00020044,2]
[366573752,1750324239005,-151.0,0.00020044,2]
[366573754,1750324239015,-151.0,0.00020058,2]
[366573756,1750324239024,-151.0,0.00020058,2]
[366573758,1750324239034,-500.0,0.00020088,2]
[366573760,1750324239043,-500.0,0.00020088,2]
[366573762,1750324239053,-500.0,0.00020088,2]
[366573764,1750324239062,-207.4,0.00020406,2]
[366573765,1750324239071,-1688.0,0.00020406,2]
[366573767,1750324239080,-500.0,0.00020406,2]
[366573769,1750324239090,-500.0,0.00020406,2]
[366573770,1750324239100,-500.0,0.00020406,2]
[366573771,1750324239109,-500.0,0.00020406,2]
[366573772,1750324239119,-500.0,0.00020406,2]
[366573773,1750324239128,-500.0,0.00020406,2]
[366573774,1750324239138,-1750.456,0.00020461,2]
[366573775,1750324239148,-194.38611826,0.00020516,2]
[366573776,1750324239158,-805.43121282,0.00020521,2]
[366573777,1750324239168,-598.02347184,0.00020521,2]
[366573778,1750324239177,-500.0,0.00020559,2]
[366573779,1750324239187,-965.02095051,0.00020559,2]
[366573780,1750324239197,-1000.0,0.00020559,2]
[366573781,1750324239206,-501.66409438,0.00020559,2]
[366573782,1750324239216,-1000.0,0.00020562,2]
[366573783,1750324239225,-1029.54448189,0.00020562,2]
[366573784,1750324239235,-500.0,0.00020562,2]
[366573785,1750324239245,-500.0,0.00020565,2]
[366573786,1750324239255,-167.384,0.00020633,2]
[366573787,1750324239265,-500.0,0.00020635,2]
[366573788,1750324239275,-475.92221856,0.00020635,2]
[366573789,1750324239284,-1000.0,0.00020635,2]
[366573790,1750324239294,-163.47731586,0.00020753,2]
[366573791,1750324239304,-379.23847902,0.000209,4]
[366573792,1750324239314,-151.0,0.00020944,2]
[366573793,1750324239324,-272.218366,0.00020944,2]
[366573794,1750324239334,-500.0,0.00021045,2]
[366573795,1750324239343,-379.23847894,0.00021072,4]
[366573796,1750324239353,-1500.0,0.00021107,2]
[366573797,1750324239363,-1500.0,0.0002111,2]
[366573798,1750324239373,-4566.12199284,0.00021159,2]
[366573874,1750324240716,-433.87800716,0.00021159,2]
[366573876,1750324240725,-379.23847894,0.00021245,4]
[366573878,1750324240734,-445.41,0.00021311,2]
[366573880,1750324240743,-74.331345,0.00021342,3]
[366573882,1750324240755,-368.0747991,0.00021342,3]
[366574086,1750324243156,-762.4238559,0.00021342,3]
[366574088,1750324243165,-602.41,0.00021342,3]
[366574090,1750324243174,-301.21,0.00021342,3]
[366574092,1750324243183,-150.6,0.00021342,3]
[366574094,1750324243192,-451.84,0.00021342,3]
[366574095,1750324243202,-151.0,0.00021382,2]
[366574098,1750324243210,-379.23847894,0.00021417,5]
[366574101,1750324243220,-244.54139211,0.0002142,2]
[366574103,1750324243229,-699.05311683,0.0002142,2]
[366574336,1750324246087,-18.88214859,0.0002142,2]
[366574338,1750324246097,-717.93526542,0.0002142,2]
[366574340,1750324246106,-717.93526542,0.0002142,2]
[366574342,1750324246115,-367.59873989,0.0002142,2]
[366575630,1750324372588,161.5,0.00025163,60]
[366575646,1750325054846,162.567019,0.00013699,2]
[366575649,1750325137539,2000.0,0.00020386,120]
[366575670,1750325271430,700.08697785,0.000246,120]
[366575694,1750325301336,188.0,0.0002,120]
[366575696,1750325315322,1141.32160133,0.0002,120]
[366575700,1750325317984,384.26544301,0.00024108,120]
[366575701,1750325319343,1795.31930967,0.00024,120]
[366575702,1750325322706,2341.24950535,0.000245,120]
[366575703,1750325324059,389.46106332,0.00024,120]
[366575704,1750325324563,970.25504164,0.00018,120]
[366575705,1750325325230,218.36392162,0.0001536,120]
[366575707,1750325326654,1010.62928913,0.0002,120]
[366575710,1750325328188,500.97258493,0.0002465,120]
[366575711,1750325328221,236.53963477,0.00024,120]
[366575713,1750325328285,158.92,0.00019216,120]
[366575774,1750325432160,-1000.0,0.00019989,2]
[366575776,1750325432169,-300.0,0.00020338,2]
[366575778,1750325432179,-300.0,0.00020338,2]
[366575780,1750325432188,-4020.04082922,0.00020339,2]
[366575790,1750325432279,-2600.0,0.00020339,2]
[366575792,1750325432292,-2599.85870363,0.00020339,2]
[366575794,1750325432303,-1137.5,0.00020339,2]
[366575797,1750325432315,-4592.23715965,0.00020339,2]
[366575799,1750325432324,-500.60394302,0.00021183,5]
[366575801,1750325432334,-447.37,0.00021298,2]
[366575802,1750325432343,-163.47731586,0.00021312,2]
[366575804,1750325432353,-207.4,0.00021403,2]
[366575806,1750325432362,-251.04583024,0.00021411,2]
[366575808,1750325432372,-191.36253251,0.00021411,2]
[366575811,1750325432382,-164.9101268,0.00021411,2]
[366575813,1750325432391,-500.0,0.00021411,2]
[366575815,1750325432399,-500.0,0.00021411,2]
[366575816,1750325432408,-500.0,0.00021411,2]
[366575817,1750325432418,-500.0,0.00021411,2]
[366575818,1750325432427,-231.09242657,0.00021411,2]
[366575819,1750325432436,-500.0,0.00021411,2]
[366575820,1750325432445,-305.56676181,0.00021411,2]
[366575821,1750325432454,-500.0,0.00021411,2]
[366575822,1750325432463,-4309.5070346,0.00021412,2]
[366575823,1750325432474,-605.45,0.00021412,2]
[366575824,1750325432489,-457.06942327,0.00021411,2]
[366575825,1750325432500,-42.93057673,0.00021411,2]
[366575826,1750325432509,-438.9151135,0.00021412,2]
[366577547,1750325977780,-453.0,0.00019878,2]
[366577548,1750326040807,-1772.0,0.00019679,2]
[366577550,1750326293232,2000.0,0.00020137,120]
[366577553,1750326462128,664.39,0.0002516,60]
[366577559,1750326568345,554.33346142,0.0002516,120]
[366577561,1750326603209,664.07807563,0.0001911,2]
[366577826,1750326640582,-2227.2236023,0.00020242,2]
[366583303,1750326736012,-300.0,0.00020241,2]
[366583304,1750326736036,-15778.0,0.00020242,2]
[366583307,1750326930402,5000.0,0.0001911,2]
[366583308,1750326946423,5000.0,0.0001911,2]
[366583309,1750326961968,1195.63377088,0.0001911,2]
[366583313,1750327111497,438.72927485,0.00024658,120]
[366583316,1750327195199,-285.1272292,0.00019241,2]
[366583317,1750327195221,-216.69513286,0.00019633,2]
[366583318,1750327195251,-363.12735239,0.00019899,2]
[366583319,1750327195280,-4334.05028555,0.00019999,2]
[366583320,1750327351208,2000.0,0.00018954,120]
[366583324,1750327565923,410.0,0.00024657,120]
[366583325,1750327598121,11343.6282078,0.00018917,2]
[366583332,1750327773654,2499.0,0.0001911,2]
[366583374,1750327832711,-158.51095816,0.0001987,2]
[366583376,1750327832721,-158.51095816,0.0001987,2]
[366583378,1750327832730,-158.51095816,0.00019871,2]
[366583379,1750327832739,-317.73643335,0.00019871,2]
[366583381,1750327832748,-158.51095816,0.00019871,2]
[366583382,1750327832757,-362.26424522,0.000199,2]
[366583383,1750327832768,-189.64800907,0.000199,2]
[366583384,1750327832777,-300.0,0.0001997,2]
[366583385,1750327832787,-5553.33856789,0.00019971,2]
[366583386,1750327832798,-598.16471941,0.00019971,2]
[366583387,1750327832809,-408.73193762,0.00019971,2]
[366583388,1750327832820,-15711.489433,0.00019971,2]
[366583389,1750327832830,-6933.19788595,0.00019971,2]
[366583390,1750327832849,-8555.69088788,0.00019971,2]
[366583996,1750327840766,-500.0,0.0001997,2]
[366583997,1750327840775,-500.0,0.0001997,2]
[366583998,1750327840784,-500.0,0.0001997,2]
[366583999,1750327840794,-436.18434817,0.0001997,2]
[366584000,1750327840821,-25.90104467,0.0001997,2]
[366584001,1750327840830,-414.09895533,0.0001997,2]
[366584219,1750327844788,-85.90104467,0.0001997,2]
[366584221,1750327844798,-500.0,0.0001997,2]
[366584222,1750327844807,-186.61257414,0.0001997,2]
[366584224,1750327844816,-105.20218515,0.0001997,2]
[366584227,1750327844842,-261.90879139,0.0001997,2]
[366584229,1750327844851,-500.0,0.0001997,2]
[366584231,1750327844860,-500.0,0.0001997,2]
[366584233,1750327844869,-500.0,0.0001997,2]
[366584235,1750327844878,-500.0,0.0001997,2]
[366584237,1750327844888,-500.0,0.0001997,2]
[366584239,1750327844898,-500.0,0.0001997,2]
[366584241,1750327844907,-500.0,0.0001997,2]
[366584243,1750327844917,-500.0,0.0001997,2]
[366584245,1750327844926,-500.0,0.0001997,2]
[366584247,1750327844936,-500.0,0.0001997,2]
[366584249,1750327844945,-500.0,0.0001997,2]
[366584251,1750327844954,-500.0,0.0001997,2]
[366584253,1750327844963,-500.0,0.0001997,2]
[366584256,1750327844973,-500.0,0.0001997,2]
[366584258,1750327844982,-500.0,0.0001997,2]
[366584260,1750327844991,-500.0,0.0001997,2]
[366584262,1750327845000,-500.0,0.0001997,2]
[366584264,1750327845009,-500.0,0.0001997,2]
[366584266,1750327845020,-500.0,0.0001997,2]
[366584268,1750327845029,-500.0,0.0001997,2]
[366584270,1750327845038,-500.0,0.0001997,2]
[366584272,1750327845047,-500.0,0.0001997,2]
[366584274,1750327845056,-500.0,0.0001997,2]
[366584276,1750327845066,-500.0,0.0001997,2]
[366584278,1750327845075,-500.0,0.0001997,2]
[366584280,1750327845085,-500.0,0.0001997,2]
[366584282,1750327845094,-500.0,0.0001997,2]
[366584284,1750327845103,-542.57003415,0.0001997,2]
[366584286,1750327845113,-27296.25352878,0.00019971,2]
[366584288,1750327845127,-36025.97857051,0.00019971,2]
[366584290,1750327845137,-300.0,0.00019972,2]
[366584292,1750327845146,-500.41816556,0.00019973,2]
[366584294,1750327845156,-505.60467982,0.00019973,2]
[366584296,1750327845166,-448.4397915,0.00019973,2]
[366584297,1750327845175,-500.0,0.00019973,2]
[366584299,1750327845184,-500.0,0.00019973,2]
[366584301,1750327845195,-501.85679149,0.00019973,2]
[366584303,1750327845204,-500.0,0.00019973,2]
[366584305,1750327845214,-500.0,0.00019973,2]
[366584307,1750327845223,-500.0,0.00019973,2]
[366584309,1750327845233,-501.13706826,0.00019973,2]
[366584311,1750327845242,-500.70924087,0.00019973,2]
[366584313,1750327845252,-500.0,0.00019973,2]
[366584315,1750327845261,-501.46574629,0.00019973,2]
[366584317,1750327845270,-500.0,0.00019973,2]
[366584319,1750327845279,-376.62669077,0.00019973,2]
[366584321,1750327845288,-500.0,0.00019973,2]
[366584323,1750327845298,-447.54256121,0.00019973,2]
[366584325,1750327845307,-500.0,0.00019973,2]
[366584327,1750327845315,-501.21098718,0.00019973,2]
[366584329,1750327845325,-500.0,0.00019973,2]
[366584331,1750327845334,-500.0,0.00019973,2]
[366584333,1750327845343,-151.0,0.00019973,2]
[366584335,1750327845352,-464.55,0.00019989,3]
[366584337,1750327845362,-232.27,0.00019989,3]
[366584339,1750327845371,-929.1,0.0001999,3]
[366584341,1750327845380,-696.85,0.0001999,3]
[366584343,1750327845389,-151.0,0.00019996,2]
[366584344,1750327845398,-151.0,0.00019996,2]
[366584346,1750327845407,-151.0,0.00019996,2]
[366584348,1750327845416,-151.0,0.00019997,2]
[366584350,1750327845425,-151.0,0.00019997,2]
[366584352,1750327845435,-151.0,0.00019997,2]
[366584354,1750327845444,-151.0,0.00019997,2]
[366584356,1750327845453,-151.0,0.00019997,2]
[366584358,1750327845462,-151.0,0.00019998,2]
[366584360,1750327845471,-209.958519,0.00019998,2]
[366584362,1750327845480,-151.0,0.00019999,2]
[366584364,1750327845489,-151.0,0.00019999,2]
[366584366,1750327845500,-151.0,0.00019999,2]
[366584368,1750327845509,-151.0,0.00019999,2]
[366584370,1750327845518,-151.0,0.00019999,2]
[366584372,1750327845527,-151.0,0.00019999,2]
[366584374,1750327845537,-151.0,0.00019999,2]
[366584376,1750327845546,-500.0,0.00019999,2]
[366584378,1750327845556,-151.0,0.00019999,2]
[366584380,1750327845565,-151.0,0.00019999,2]
[366584381,1750327845575,-692.72122006,0.00019999,2]
[366584383,1750327845584,-692.72122006,0.00019999,2]
[366584385,1750327845594,-171.17897448,0.00019999,2]
[366584387,1750327845603,-692.72122006,0.00019999,2]
[366584389,1750327845612,-692.72122006,0.00019999,2]
[366584391,1750327845622,-692.72122006,0.00019999,2]
[366584393,1750327845631,-692.72122006,0.00019999,2]
[366584395,1750327845640,-692.72122006,0.00019999,2]
[366584397,1750327845649,-692.72122006,0.00019999,2]
[366584399,1750327845658,-692.72122006,0.00019999,2]
[366584401,1750327845668,-692.72122006,0.00019999,2]
[366584403,1750327845676,-692.72122006,0.00019999,2]
[366584405,1750327845686,-692.72122006,0.00019999,2]
[366584407,1750327845695,-692.72122006,0.00019999,2]
[366584409,1750327845704,-692.72122006,0.00019999,2]
[366584411,1750327845713,-692.72122006,0.00019999,2]
[366584413,1750327845723,-692.72122006,0.00019999,2]
[366584415,1750327845732,-692.72122006,0.00019999,2]
[366584417,1750327845741,-692.72122006,0.00019999,2]
[366584419,1750327845750,-692.72122006,0.00019999,2]
[366584421,1750327845759,-692.72122006,0.00019999,2]
[366584423,1750327845768,-2621.19947017,0.0002,2]
[366584518,1750327846691,-61.05150797,0.0002,2]
[366584695,1750327935667,2000.0,0.000246,120]
[366584696,1750327960340,-300.0,0.00019969,2]
[366584697,1750327960364,-300.0,0.00019969,2]
[366584698,1750327960388,-500.0,0.00019973,2]
[366584699,1750327960412,-500.0,0.00019973,2]
[366584700,1750327960435,-500.63534723,0.00019973,2]
[366584701,1750327960461,-500.0,0.00019999,2]
[366584702,1750327960485,-500.0,0.00019999,2]
[366584703,1750327960508,-459.39826906,0.00019999,2]
[366584704,1750327960529,-500.0,0.00019999,2]
[366584705,1750327960552,-500.0,0.00019999,2]
[366584706,1750327960573,-500.0,0.00019999,2]
[366584707,1750327960593,-500.0,0.00019999,2]
[366584708,1750327960614,-500.0,0.00019999,2]
[366584709,1750327960634,-500.0,0.00019999,2]
[366584710,1750327960655,-500.0,0.00019999,2]
[366584711,1750327960676,-500.0,0.00019999,2]
[366584712,1750327960697,-500.0,0.00019999,2]
[366584713,1750327960721,-504.25700342,0.00019999,2]
[366584714,1750327960742,-500.0,0.00019999,2]
[366584715,1750327960763,-7013.70938029,0.0002,2]
[366584716,1750327982765,1700.0,0.000246,120]
[366584717,1750328002522,2055.0,0.000246,120]
[366584721,1750328345261,-4463.57530682,0.00019573,2]
[366584722,1750328345290,-151.0,0.00019971,2]
[366584723,1750328345318,-151.0,0.00019971,2]
[366584724,1750328345347,-151.0,0.00019971,2]
[366584725,1750328345370,-208.558795,0.00019971,2]
[366584726,1750328345395,-151.0,0.00019973,2]
[366584727,1750328345422,-300.0,0.00019999,2]
[366584728,1750328345451,-300.0,0.00019999,2]
[366584729,1750328345475,-17341.86589818,0.0002,2]
[366584730,1750328349676,-166.3,0.00019178,2]
[366584731,1750328359651,5000.0,0.0001911,2]
[366584732,1750328376095,5000.0,0.0001911,2]
[366584733,1750328391479,5000.0,0.0001911,2]
[366584734,1750328407660,5000.0,0.0001911,2]
[366584735,1750328413543,-4436.3971168,0.00019178,2]
[366584736,1750328413565,-179.08923565,0.00019899,2]
[366584737,1750328413588,-384.51364755,0.00019999,2]
[366584740,1750328469718,653.9225108,0.00019148,120]
[366584742,1750328479449,-186.4335805,0.00019408,2]
[366584743,1750328479471,-4813.5664195,0.00019799,2]
[366584745,1750328519189,1000.0,0.00024657,120]
[366584748,1750328730150,-284.54928678,0.00019601,2]
[366584754,1750328807287,-155.71071322,0.00019405,2]
[366584769,1750328997649,5000.0,0.0001911,2]
[366584801,1750329031782,-1205.1735805,0.00019552,2]
[366584803,1750329031791,-168.0,0.0001975,2]
[366584805,1750329031801,-179.08923565,0.00019899,2]
[366584807,1750329031810,-615.48635245,0.0001997,2]
[366584809,1750329031819,-300.0,0.00019999,2]
[366584811,1750329031828,-300.0,0.00019999,2]
[366584813,1750329031837,-300.0,0.00019999,2]
[366584815,1750329031847,-294.0,0.00019999,2]
[366584817,1750329031856,-695.26425444,0.00019999,2]
[366584819,1750329031867,-504.73574556,0.00019999,2]
[366584821,1750329031877,-1582.82865631,0.0002,2]
[366584823,1750329031886,-1533.97559813,0.0002,2]
[366584884,1750329037708,-171.41222109,0.0002,2]
[366584885,1750329037717,-6549.30601261,0.0002,2]
[366584886,1750329037727,-250.0,0.00020111,2]
[366584887,1750329037736,-906.9708363,0.00020179,2]
[366584888,1750329037746,-160.0,0.00020223,2]
[366584890,1750329037755,-151.0,0.00020324,2]
[366584892,1750329037765,-500.0,0.00020324,2]
[366584894,1750329037774,-500.0,0.00020324,2]
[366584895,1750329037784,-151.0,0.00020324,2]
[366584897,1750329037794,-500.0,0.00020324,2]
[366584899,1750329037804,-151.0,0.00020324,2]
[366584900,1750329037813,-206.33501802,0.00020324,2]
[366584901,1750329037823,-151.0,0.00020324,2]
[366584902,1750329037832,-549.0,0.00020351,2]
[366584903,1750329037842,-151.0,0.00020351,2]
[366584904,1750329037851,-151.0,0.00020351,2]
[366584905,1750329037861,-151.0,0.00020351,2]
[366584906,1750329037870,-151.0,0.00020351,2]
[366584907,1750329037879,-500.0,0.00020351,2]
[366584908,1750329037889,-151.0,0.00020351,2]
[366584909,1750329037898,-55.16437321,0.00020351,2]
[366584910,1750329037909,-95.83562679,0.00020351,2]
[366584911,1750329037919,-151.0,0.00020351,2]
[366584912,1750329037929,-151.0,0.00020351,2]
[366584913,1750329037938,-198.5405104,0.00020351,2]
[366584914,1750329037947,-151.0,0.00020351,2]
[366584915,1750329037956,-500.0,0.00020351,2]
[366584916,1750329037966,-500.0,0.00020351,2]
[366584917,1750329037975,-151.0,0.00020351,2]
[366584918,1750329037984,-500.0,0.00020351,2]
[366584919,1750329037993,-193.70892126,0.00020351,2]
[366584920,1750329038002,-151.0,0.00020351,2]
[366584921,1750329038011,-151.0,0.00020378,2]
[366584922,1750329038020,-151.0,0.00020378,2]
[366584923,1750329038030,-151.0,0.00020378,2]
[366584924,1750329038039,-500.0,0.00020378,2]
[366584925,1750329038048,-549.0,0.00020378,2]
[366584926,1750329038057,-151.0,0.00020378,2]
[366584927,1750329038066,-151.0,0.00020378,2]
[366584928,1750329038076,-199.23961877,0.00020378,2]
[366584929,1750329038085,-500.0,0.00020378,2]
[366584930,1750329038094,-151.0,0.00020378,2]
[366584931,1750329038103,-151.0,0.00020378,2]
[366584932,1750329038113,-199.00030294,0.00020378,2]
[366584933,1750329038122,-151.0,0.00020378,2]
[366584934,1750329038131,-151.0,0.00020379,2]
[366584935,1750329038141,-500.0,0.00020379,2]
[366584936,1750329038152,-500.0,0.00020379,2]
[366584937,1750329038162,-198.0,0.00020379,2]
[366584938,1750329038171,-500.0,0.00020379,2]
[366584939,1750329038181,-151.0,0.00020379,2]
[366584940,1750329038190,-151.0,0.00020379,2]
[366584941,1750329038199,-242.88190379,0.00020379,2]
[366584942,1750329038208,-156.587,0.00020392,2]
[366584943,1750329038217,-500.0,0.00020399,2]
[366584944,1750329038227,-184.81959144,0.00020399,2]
[366584945,1750329038236,-500.0,0.00020399,2]
[366584946,1750329038245,-451.15499922,0.00020399,2]
[366584947,1750329038254,-500.0,0.00020399,2]
[366584948,1750329038264,-500.0,0.00020399,2]
[366584949,1750329038273,-500.0,0.00020399,2]
[366584950,1750329038283,-500.0,0.00020399,2]
[366584951,1750329038292,-500.0,0.00020399,2]
[366584952,1750329038301,-174.77288761,0.00020399,2]
[366584953,1750329038310,-500.0,0.00020399,2]
[366584954,1750329038320,-282.80421314,0.00020399,2]
[366584955,1750329038329,-500.0,0.00020399,2]
[366584956,1750329038338,-500.0,0.00020399,2]
[366584957,1750329038347,-538.09651936,0.00020399,2]
[366584958,1750329038357,-620.90416824,0.00020399,2]
[366584959,1750329038366,-500.0,0.00020399,2]
[366584960,1750329038375,-486.86151579,0.00020399,2]
[366584961,1750329038385,-500.0,0.00020399,2]
[366584962,1750329038395,-389.98320713,0.00020399,2]
[366584963,1750329038404,-173.48882016,0.00020399,2]
[366584964,1750329038413,-500.0,0.00020399,2]
[366584965,1750329038422,-500.0,0.00020399,2]
[366584966,1750329038432,-500.0,0.00020399,2]
[366584967,1750329038441,-169.34850685,0.00020399,2]
[366584968,1750329038451,-500.0,0.00020399,2]
[366584969,1750329038460,-500.0,0.00020399,2]
[366584970,1750329038470,-500.0,0.00020399,2]
[366584971,1750329038480,-500.0,0.00020399,2]
[366584972,1750329038489,-500.0,0.00020399,2]
[366584973,1750329038498,-500.0,0.00020399,2]
[366584974,1750329038508,-500.0,0.00020399,2]
[366584975,1750329038518,-153.0,0.000204,2]
[366584976,1750329038527,-159.0225674,0.000204,2]
[366584977,1750329038537,-177.1918157,0.000204,2]
[366584978,1750329038547,-574.3302288,0.000204,2]
[366584979,1750329038557,-153.0,0.000204,2]
[366584980,1750329038566,-159.0225674,0.000204,2]
[366584981,1750329038576,-177.1918157,0.000204,2]
[366584982,1750329038586,-153.0,0.000204,2]
[366584983,1750329038595,-574.3302288,0.000204,2]
[366584984,1750329038604,-159.0225674,0.000204,2]
[366584985,1750329038614,-574.3302288,0.000204,2]
[366584986,1750329038624,-177.1918157,0.000204,2]
[366584987,1750329038633,-153.0,0.000204,2]
[366584988,1750329038643,-356.1753068,0.000204,2]
[366584989,1750329038652,-151.0,0.00020405,2]
[366584990,1750329038664,-198.0,0.00020405,2]
[366584991,1750329038673,-151.0,0.00020405,2]
[366584992,1750329038683,-549.0,0.00020406,2]
[366584993,1750329038695,-151.0,0.00020406,2]
[366584994,1750329038706,-151.0,0.00020406,2]
[366584995,1750329038715,-500.0,0.00020406,2]
[366584996,1750329038724,-151.0,0.00020406,2]
[366584997,1750329038733,-151.0,0.00020406,2]
[366584998,1750329038743,-151.0,0.00020406,2]
[366584999,1750329038753,-151.0,0.00020433,2]
[366585000,1750329038762,-151.0,0.00020433,2]
[366585001,1750329038772,-549.0,0.00020433,2]
[366585002,1750329038781,-151.0,0.00020433,2]
[366585003,1750329038791,-171.2560716,0.00020433,2]
[366585004,1750329038800,-302.0,0.00020433,2]
[366585005,1750329038810,-240.0,0.00020434,2]
[366585006,1750329038819,-163.57688465,0.00020434,2]
[366585007,1750329038828,-151.0,0.00020434,2]
[366585008,1750329038837,-275.02812527,0.00020447,2]
[366585009,1750329038847,-500.0,0.0002045,2]
[366585010,1750329038856,-151.0,0.0002046,2]
[366585011,1750329038865,-251.21385254,0.0002046,2]
[366585012,1750329038875,-549.0,0.00020461,2]